[Event "XXIX Cracovia 2018"]
[Site "Krakow"]
[Date "2018.12.30"]
[Round "5"]
[White "Siprashvili, Ivane"]
[Black "Zianowicz, Dominik"]
[Result "1-0"]
[ECO "A06"]
[WhiteElo "2074"]
[BlackElo "1969"]
[Annotator "NA"]
[PlyCount "101"]
[EventDate "2018.12.27"]
[EventType "swiss"]
[EventCountry "POL"]
[SourceTitle "playchess.com"]
[Source "ChessBase"]
[SourceQuality "1"]
[TimeControl "40/5400+30:1800+30"]

1. Nf3 d5 2. g3 c5 3. c4 d4 4. b4 cxb4 5. a3 b3 6. Qxb3 Nc6 7. d3 e5 8. Bg2 Qc7 9. O-O Bd6 10. e3 dxe3 11. Bxe3 Nf6 12. Nc3 a6 13. Rfc1 Qe7 14. Bg5 O-O 15. Nd5 Qe6 16. Bxf6 gxf6 17. Qb6 Ne7 18. Nd2 f5 19. Nc7 Bxc7 20. Qxc7 Nc6 21. Nb3 Qd7 22. Qxd7 Bxd7 23. Nc5 Be6 24. Bxc6 bxc6 25. Rab1 Rfb8 26. f4 e4 27. Nxe6 fxe6 28. dxe4 fxe4 29. Kf2 a5 30. Ke3 a4 31. Kxe4 Rb3 32. Rxb3 axb3 33. Ra1 Kf7 34. Kd4 b2 35. Rb1 h5 36. Rxb2 Rxa3 37. Kc5 h4 38. gxh4 Rf3 39. Kxc6 Rxf4 40. c5 Rxh4 41. Kb7 e5 42. c6 e4 43. c7 Rh8 44. c8=Q Rxc8 45. Kxc8 Ke6 46. Re2 Kd5 47. h4 Kd4 48. h5 Kd3 49. Rh2 e3 50. h6 e2 51. Rxe2 1-0

[Event "XXIX Cracovia 2018"]
[Site "Krakow"]
[Date "2018.12.30"]
[Round "5"]
[White "Jankowiak, Tomasz"]
[Black "Jablonska, Sabina"]
[Result "1-0"]
[ECO "C60"]
[WhiteElo "2070"]
[BlackElo "1964"]
[Annotator "NA"]
[PlyCount "47"]
[EventDate "2018.12.27"]
[EventType "swiss"]
[EventCountry "POL"]
[SourceTitle "playchess.com"]
[Source "ChessBase"]
[SourceQuality "1"]
[TimeControl "40/5400+30:1800+30"]

1. e4 e5 2. Nf3 Nc6 3. Bb5 Nge7 4. Nc3 g6 5. d4 exd4 6. Nd5 Nxd5 7. exd5 Qe7+ 8. Kf1 Ne5 9. Bf4 Bg7 10. Qxd4 f6 11. Re1 O-O 12. Nxe5 fxe5 13. Bxe5 Re8 14. f4 d6 15. Bxe8 dxe5 16. Bb5 Qf7 17. Rxe5 Bxe5 18. Qxe5 Bf5 19. Kf2 Rd8 20. Re1 a6 21. Ba4 Qf8 22. d6 h6 23. Bb3+ Kh7 24. Qe7+ 1-0

[Event "XXIX Cracovia 2018"]
[Site "Krakow"]
[Date "2018.12.30"]
[Round "5"]
[White "Budnik, Mateusz"]
[Black "Rysaev, Danial"]
[Result "1-0"]
[ECO "C06"]
[WhiteElo "2053"]
[BlackElo "1945"]
[Annotator "NA"]
[PlyCount "41"]
[EventDate "2018.12.27"]
[EventType "swiss"]
[EventCountry "POL"]
[SourceTitle "playchess.com"]
[Source "ChessBase"]
[SourceQuality "1"]
[TimeControl "40/5400+30:1800+30"]

1. e4 {[%emt 0:00:50]} e6 {[%emt 0:00:00]} 2. d4 {[%emt 0:00:06]} d5 {[%emt 0:00:01]} 3. Nd2 {[%emt 0:00:05]} Nf6 {[%emt 0:00:12]} 4. e5 {[%emt 0:00:12]} Nfd7 {[%emt 0:00:07]} 5. Bd3 {[%emt 0:00:36]} c5 {[%emt 0:00:10]} 6. c3 {[%emt 0:00:05]} Nc6 {[%emt 0:00:02]} 7. Ne2 {[%emt 0:00:06]} cxd4 {[%emt 0:00:06]} 8. cxd4 {[%emt 0:00:10]} f6 {[%emt 0:00:03]} 9. Nf4 {[%emt 0:02:24]} Nxd4 {[%emt 0:00:07]} 10. Qh5+ {[%emt 0:00:17]} Ke7 {[%emt 0:00:01]} 11. Ng6+ {[%emt 0:00:38]} hxg6 {[%emt 0:00:02]} 12. exf6+ {[%emt 0:00:09]} Kxf6 {[%emt 0:00:51]} 13. Qxh8 {[%emt 0:00:28]} Nc5 {[%emt 0:04:11]} 14. Qh4+ {[%emt 0:03:16]} Kf7 {[%emt 0:13:47]} 15. Bxg6+ {[%emt 0:06:39]} Kxg6 {[%emt 0:00:07]} 16. Qxd8 {[%emt 0:00:04]} Bd7 {[%emt 0:03:21]} 17. Qxa8 {[%emt 0:10:45]} Nd3+ {[%emt 0:00:32]} 18. Kf1 {[%emt 0:00:17]} Bb5 {[%emt 0:00:04]} 19. h4 {[%emt 0:00:51]} Bd6 {[%emt 0:00:21]} 20. g3 {[%emt 0:02:25]} Bb4 {[%emt 0:01:03]} 21. Kg2 {[%emt 0:01:46]} 1-0

[Event "XXIX Cracovia 2018"]
[Site "Krakow"]
[Date "2018.12.30"]
[Round "5"]
[White "Kumor, Lukasz"]
[Black "Adamczewski, Maciej"]
[Result "1-0"]
[ECO "C13"]
[WhiteElo "2040"]
[BlackElo "2080"]
[Annotator "NA"]
[PlyCount "79"]
[EventDate "2018.12.27"]
[EventType "swiss"]
[EventCountry "POL"]
[SourceTitle "playchess.com"]
[Source "ChessBase"]
[SourceQuality "1"]
[TimeControl "40/5400+30:1800+30"]

1. e4 {[%emt 0:04:46]} e6 {[%emt 0:00:00]} 2. d4 {[%emt 0:01:22]} d5 {[%emt 0:00:00]} 3. Nc3 {[%emt 0:01:03]} Nf6 {[%emt 0:00:00]} 4. Bg5 {[%emt 0:02:22]} Be7 {[%emt 0:00:00]} 5. e5 {[%emt 0:00:06]} Nfd7 {[%emt 0:00:04]} 6. h4 {[%emt 0:03:32]} h6 {[%emt 0:00:11]} 7. Be3 {[%emt 0:09:13]} c5 {[%emt 0:00:06]} 8. Qg4 {[%emt 0:00:07]} Kf8 {[%emt 0:00:04]} 9. dxc5 {[%emt 0:13:28]} Nxe5 {[%emt 0:05:29]} 10. Qg3 {[%emt 0:01:11]} Nbd7 {[%emt 0:02:19]} 11. O-O-O {[%emt 0:04:59]} Nc6 {[%emt 0:02:37]} 12. f4 {[%emt 0:22:31]} Bf6 {[%emt 0:04:49]} 13. Nge2 {[%emt 0:10:20]} Qa5 {[%emt 0:09:52]} 14. Qf2 {[%emt 0:01:13]} b5 {[%emt 0:10:37]} 15. cxb6 {[%emt 0:02:14]} Nxb6 {[%emt 0:08:46]} 16. Nd4 {[%emt 0:01:52]} Nxd4 {[%emt 0:03:35]} 17. Bxd4 {[%emt 0:00:42]} Nd7 {[%emt 0:01:26]} 18. Bb5 {[%emt 0:05:42]} Bxd4 {[%emt 0:04:30]} 19. Qxd4 {[%emt 0:01:14]} Nf6 {[%emt 0:00:41]} 20. g4 {[%emt 0:06:36]} a6 {[%emt 0:18:19]} 21. g5 {[%emt 0:03:34]} Ng8 {[%emt 0:00:37]} 22. Nxd5 {[%emt 0:01:54]} exd5 {[%emt 0:01:21]} 23. Qxd5 {[%emt 0:00:16]} axb5 {[%emt 0:01:19]} 24. Qd6+ {[%emt 0:00:21]} Ke8 {[%emt 0:00:17]} 25. Qc6+ {[%emt 0:00:39]} Kf8 {[%emt 0:00:09]} 26. Qd6+ {[%emt 0:00:29]} Ke8 {[%emt 0:00:05]} 27. Rhe1+ {[%emt 0:00:46]} Be6 {[%emt 0:00:45]} 28. f5 {[%emt 0:00:31]} Rd8 {[%emt 0:12:01]} 29. Qc6+ {[%emt 0:00:14]} Kf8 {[%emt 0:00:07]} 30. fxe6 {[%emt 0:00:46]} Ne7 {[%emt 0:00:48]} 31. Qf3 {[%emt 0:00:23]} Kg8 {[%emt 0:02:13]} 32. Qxf7+ {[%emt 0:00:21]} Kh7 {[%emt 0:00:04]} 33. Qxe7 {[%emt 0:00:29]} Rhe8 {[%emt 0:02:09]} 34. g6+ {[%emt 0:00:51]} Kh8 {[%emt 0:00:21]} 35. Qa3 {[%emt 0:00:32]} Rxd1+ {[%emt 0:02:03]} 36. Rxd1 {[%emt 0:00:20]} Qc7 {[%emt 0:00:09]} 37. Qd6 {[%emt 0:00:48]} Qc4 {[%emt 0:00:26]} 38. Qd7 {[%emt 0:00:26]} Rg8 {[%emt 0:01:03]} 39. e7 {[%emt 0:00:36]} Qe4 {[%emt 0:00:55]} 40. h5 {[%emt 0:00:00]} 1-0

[Event "XXIX Cracovia 2018"]
[Site "Krakow"]
[Date "2018.12.30"]
[Round "5"]
[White "Kvaratskhelia, Dimitri"]
[Black "Zelak, Wladyslaw"]
[Result "1-0"]
[ECO "D05"]
[WhiteElo "1996"]
[BlackElo "1833"]
[Annotator "NA"]
[PlyCount "60"]
[EventDate "2018.12.27"]
[EventType "swiss"]
[EventCountry "POL"]
[SourceTitle "playchess.com"]
[Source "ChessBase"]
[SourceQuality "1"]
[TimeControl "40/5400+30:1800+30"]

1. d4 Nf6 2. Nf3 d5 3. e3 e6 4. Bd3 Be7 5. O-O O-O 6. Nbd2 c5 7. b3 Nc6 8. Bb2 b6 9. a3 h6 10. c4 Rb8 11. Ne5 Qc7 12. Nxc6 Qxc6 13. Nf3 Nd7 14. cxd5 exd5 15. Rc1 Bb7 16. Qe2 Qe6 17. Bb1 Rfc8 18. Qd3 g6 19. Ne5 Nxe5 20. dxe5 c4 21. Qc3 Rd8 22. b4 a5 23. Qd2 axb4 24. axb4 d4 25. Bxd4 Bxg2 26. f4 Bxf1 27. Rxf1 Rbc8 28. Qg2 Kh8 29. Kh1 Rg8 30. Be4 Rcd8 1-0

[Event "XXIX Cracovia 2018"]
[Site "Krakow"]
[Date "2018.12.30"]
[Round "5"]
[White "Warchol, Bartosz"]
[Black "Patsia, Zviad"]
[Result "0-1"]
[ECO "D20"]
[WhiteElo "1975"]
[BlackElo "2058"]
[Annotator "NA"]
[PlyCount "82"]
[EventDate "2018.12.27"]
[EventType "swiss"]
[EventCountry "POL"]
[SourceTitle "playchess.com"]
[Source "ChessBase"]
[SourceQuality "1"]
[TimeControl "40/5400+30:1800+30"]

1. d4 {[%emt 0:00:00]} d5 {[%emt 0:00:30]} 2. c4 {[%emt 0:00:00]} dxc4 {[%emt 0:00:28]} 3. e3 {[%emt 0:00:12]} e5 {[%emt 0:00:13]} 4. Bxc4 {[%emt 0:00:41]} exd4 {[%emt 0:00:45]} 5. Qb3 {[%emt 0:02:55]} Qe7 {[%emt 0:01:27]} 6. Nf3 {[%emt 0:01:08]} Qb4+ {[%emt 0:00:49]} 7. Nbd2 {[%emt 0:05:28]} Qxb3 {[%emt 0:01:01]} 8. Nxb3 {[%emt 0:01:05]} Bb4+ {[%emt 0:00:25]} 9. Ke2 {[%emt 0:01:45]} dxe3 {[%emt 0:00:05]} 10. Bxe3 {[%emt 0:00:11]} Nf6 {[%emt 0:11:16]} 11. Rhd1 {[%emt 0:13:10]} O-O {[%emt 0:01:27]} 12. Nbd4 {[%emt 0:05:37]} c6 {[%emt 0:09:02]} 13. a3 {[%emt 0:02:33]} Be7 {[%emt 0:08:38]} 14. h3 {[%emt 0:01:41]} a6 {[%emt 0:14:13]} 15. a4 {[%emt 0:13:53]} a5 {[%emt 0:01:20]} 16. Nb3 {[%emt 0:03:20]} Bf5 {[%emt 0:01:34]} 17. Nh4 {[%emt 0:07:40]} Be4 {[%emt 0:02:37]} 18. f3 {[%emt 0:02:03]} Bd5 {[%emt 0:00:40]} 19. Rac1 {[%emt 0:02:52]} Nbd7 {[%emt 0:06:08]} 20. Nf5 {[%emt 0:01:27]} Bb4 {[%emt 0:01:02]} 21. Bf4 {[%emt 0:02:47]} Nb6 {[%emt 0:02:16]} 22. Bxd5 {[%emt 0:00:20]} Nfxd5 {[%emt 0:00:05]} 23. Bd6 {[%emt 0:02:12]} Rfe8+ {[%emt 0:03:27]} 24. Kf2 {[%emt 0:01:53]} Nxa4 {[%emt 0:00:34]} 25. Bxb4 {[%emt 0:03:17]} Nxb4 {[%emt 0:07:42]} 26. Rb1 {[%emt 0:10:59]} b6 {[%emt 0:01:16]} 27. Rd6 {[%emt 0:02:27]} g6 {[%emt 0:01:16]} 28. Nfd4 {[%emt 0:01:22]} Rad8 {[%emt 0:01:57]} 29. Rxd8 {[%emt 0:00:31]} Rxd8 {[%emt 0:00:07]} 30. Ke2 {[%emt 0:01:45]} c5 {[%emt 0:03:10]} 31. Nb5 {[%emt 0:00:20]} Nd3 {[%emt 0:00:46]} 32. Nd2 {[%emt 0:03:02]} Naxb2 {[%emt 0:01:14]} 33. Ne4 {[%emt 0:01:06]} Nc4 {[%emt 0:01:21]} 34. g3 {[%emt 0:01:21]} Nde5 {[%emt 0:02:38]} 35. f4 {[%emt 0:00:57]} Nc6 {[%emt 0:00:50]} 36. Rc1 {[%emt 0:00:44]} Nd4+ {[%emt 0:00:26]} 37. Nxd4 {[%emt 0:00:26]} Rxd4 {[%emt 0:00:04]} 38. Nc3 {[%emt 0:00:27]} Nd6 {[%emt 0:01:01]} 39. Rb1 {[%emt 0:00:35]} Ne4 {[%emt 0:00:12]} 40. Na2 {[%emt 0:00:00]} Nxg3+ {[%emt 0:00:00]} 41. Kf3 {[%emt 0:02:00]} Rd3+ {[%emt 0:01:17]} 0-1

[Event "XXIX Cracovia 2018"]
[Site "Krakow"]
[Date "2018.12.30"]
[Round "5"]
[White "Jankowiak, Piotr"]
[Black "Andronescu, Madalin"]
[Result "0-1"]
[ECO "B54"]
[WhiteElo "1952"]
[BlackElo "2070"]
[Annotator "NA"]
[PlyCount "110"]
[EventDate "2018.12.27"]
[EventType "swiss"]
[EventCountry "POL"]
[SourceTitle "playchess.com"]
[Source "ChessBase"]
[SourceQuality "1"]
[TimeControl "40/5400+30:1800+30"]

1. e4 {[%emt 0:00:00]} c5 {[%emt 0:00:00]} 2. Nf3 {[%emt 0:00:00]} d6 {[%emt 0:00:00]} 3. d4 {[%emt 0:00:00]} cxd4 {[%emt 0:00:00]} 4. Nxd4 {[%emt 0:00:01]} Nf6 {[%emt 0:00:00]} 5. f3 {[%emt 0:00:09]} Nc6 {[%emt 0:00:00]} 6. c4 {[%emt 0:00:11]} g6 {[%emt 0:00:10]} 7. Nc3 {[%emt 0:00:56]} Bg7 {[%emt 0:00:04]} 8. Be3 {[%emt 0:00:14]} O-O {[%emt 0:00:12]} 9. Qd2 {[%emt 0:00:45]} Be6 {[%emt 0:00:06]} 10. Be2 {[%emt 0:02:40]} Rc8 {[%emt 0:00:09]} 11. b3 {[%emt 0:01:30]} a6 {[%emt 0:04:19]} 12. Rc1 {[%emt 0:11:32]} Nd7 {[%emt 0:00:40]} 13. Nxe6 {[%emt 0:10:20]} fxe6 {[%emt 0:01:46]} 14. O-O {[%emt 0:00:14]} e5 {[%emt 0:00:19]} 15. Nd5 {[%emt 0:05:20]} Nd4 {[%emt 0:01:35]} 16. b4 {[%emt 0:16:38]} e6 {[%emt 0:04:25]} 17. Nc3 {[%emt 0:01:05]} Qb6 {[%emt 0:00:09]} 18. Kh1 {[%emt 0:09:01]} Qxb4 {[%emt 0:05:05]} 19. Rb1 {[%emt 0:00:40]} Qa5 {[%emt 0:00:16]} 20. Rxb7 {[%emt 0:02:44]} Nc5 {[%emt 0:01:41]} 21. Rb2 {[%emt 0:02:30]} Nxe2 {[%emt 0:17:21]} 22. Nxe2 {[%emt 0:00:26]} Qxd2 {[%emt 0:00:05]} 23. Rxd2 {[%emt 0:02:44]} Nb7 {[%emt 0:00:07]} 24. Rc1 {[%emt 0:14:58]} Rc6 {[%emt 0:04:39]} 25. Rdc2 {[%emt 0:01:29]} Rfc8 {[%emt 0:00:27]} 26. Rc3 {[%emt 0:02:46]} Na5 {[%emt 0:01:15]} 27. c5 {[%emt 0:08:58]} d5 {[%emt 0:00:04]} 28. Rd3 {[%emt 0:01:02]} d4 {[%emt 0:00:31]} 29. Bd2 {[%emt 0:03:14]} Rxc5 {[%emt 0:01:45]} 30. Rxc5 {[%emt 0:00:59]} Rxc5 {[%emt 0:00:04]} 31. f4 {[%emt 0:00:17]} Nc4 {[%emt 0:02:15]} 32. Bb4 {[%emt 0:01:45]} Rb5 {[%emt 0:00:07]} 33. Rb3 {[%emt 0:00:10]} a5 {[%emt 0:03:19]} 34. Be1 {[%emt 0:00:20]} Rxb3 {[%emt 0:02:15]} 35. axb3 {[%emt 0:00:01]} Nd6 {[%emt 0:00:40]} 36. fxe5 {[%emt 0:01:48]} Bxe5 {[%emt 0:00:06]} 37. Nc1 {[%emt 0:00:28]} Nxe4 {[%emt 0:00:40]} 38. Bxa5 {[%emt 0:00:32]} Nc5 {[%emt 0:04:31]} 39. b4 {[%emt 0:00:22]} Nb7 {[%emt 0:01:23]} 40. Bb6 {[%emt 0:00:00]} Kf7 {[%emt 0:00:00]} 41. Nd3 {[%emt 0:08:12]} Bf6 {[%emt 0:03:16]} 42. g3 {[%emt 0:04:17]} e5 {[%emt 0:01:55]} 43. Kg2 {[%emt 0:02:40]} Ke6 {[%emt 0:00:23]} 44. Kf3 {[%emt 0:02:37]} Kd5 {[%emt 0:00:39]} 45. Nf2 {[%emt 0:00:14]} Nd6 {[%emt 0:00:26]} 46. Bc7 {[%emt 0:02:37]} e4+ {[%emt 0:00:08]} 47. Ke2 {[%emt 0:01:36]} Nb5 {[%emt 0:00:06]} 48. Bf4 {[%emt 0:00:40]} Be7 {[%emt 0:02:43]} 49. Ng4 {[%emt 0:01:54]} Nc3+ {[%emt 0:03:51]} 50. Kd2 {[%emt 0:00:21]} Bxb4 {[%emt 0:01:00]} 51. Nf6+ {[%emt 0:00:24]} Kc4 {[%emt 0:00:05]} 52. Nxh7 {[%emt 0:01:04]} Nd5+ {[%emt 0:00:04]} 53. Kd1 {[%emt 0:00:22]} Kd3 {[%emt 0:01:44]} 54. Ng5 {[%emt 0:02:23]} Nxf4 {[%emt 0:00:53]} 55. gxf4 {[%emt 0:00:08]} e3 {[%emt 0:00:04]} 0-1

[Event "XXIX Cracovia 2018"]
[Site "Krakow"]
[Date "2018.12.31"]
[Round "6"]
[White "Grib, Roman"]
[Black "Zylka, Stanislaw"]
[Result "1-0"]
[ECO "B19"]
[WhiteElo "2412"]
[BlackElo "2305"]
[Annotator "ChessBase"]
[PlyCount "65"]
[EventDate "2018.12.27"]
[EventType "swiss"]
[EventCountry "POL"]
[SourceTitle "playchess.com"]
[Source "ChessBase"]
[SourceQuality "1"]
[TimeControl "40/5400+30:1800+30"]

1. e4 {[%emt 0:00:00]} c6 {[%emt 0:00:00]} 2. d4 {[%emt 0:00:20]} d5 {[%emt 0:00:00]} 3. Nc3 {[%emt 0:00:12]} dxe4 {[%emt 0:00:00]} 4. Nxe4 {[%emt 0:00:04]} Bf5 {[%emt 0:00:00]} 5. Ng3 {[%emt 0:00:11]} Bg6 {[%emt 0:00:06]} 6. Nf3 {[%emt 0:00:31]} Nd7 {[%emt 0:00:20]} 7. h4 {[%emt 0:00:04]} h6 {[%emt 0:00:11]} 8. h5 {[%emt 0:00:06]} Bh7 {[%emt 0:00:04]} 9. Bd3 {[%emt 0:00:04]} Bxd3 {[%emt 0:00:12]} 10. Qxd3 {[%emt 0:00:04]} e6 {[%emt 0:00:13]} 11. Bd2 {[%emt 0:01:12]} Ngf6 {[%emt 0:00:08]} 12. O-O-O {[%emt 0:00:27]} Be7 {[%emt 0:00:07]} 13. Qe2 {[%emt 0:11:01]} Qc7 {[%emt 0:12:18]} 14. Kb1 {[%emt 0:13:05]} O-O-O {[%emt 0:02:32]} 15. Ne5 {[%emt 0:04:00]} Nxe5 {[%emt 0:00:32]} 16. dxe5 {[%emt 0:00:04]} Nd7 {[%emt 0:00:47]} 17. f4 {[%emt 0:00:57]} c5 {[%emt 0:13:21]} 18. Ne4 {[%emt 0:21:23]} Qc6 {[%emt 0:07:52]} 19. Ba5 {[%emt 0:08:12]} Nb6 {[%emt 0:00:13]} 20. c4 {[%emt 0:02:52]} Rd4 {[%emt 0:03:20]} 21. Rxd4 {[%emt 0:00:50]} cxd4 {[%emt 0:00:09]} 22. Rd1 {[%emt 0:04:14]} f5 {[%emt 0:28:23]} 23. Nd6+ {[%emt 0:13:06]} Bxd6 {[%emt 0:06:23]} 24. exd6 {[%emt 0:00:19]} Qxd6 {[%emt 0:02:06]} 25. c5 {[%emt 0:00:27]} Qd5 {[%emt 0:00:04]} 26. cxb6 {[%emt 0:01:59]} Qxa5 {[%emt 0:00:06]} 27. bxa7 {[%emt 0:05:36]} Qxa7 {[%emt 0:00:23]} 28. Qxe6+ {[%emt 0:00:08]} Kb8 {[%emt 0:00:11]} 29. Qe5+ {[%emt 0:00:34]} Ka8 {[%emt 0:00:20]} 30. Rd3 {[%emt 0:00:07]} Rd8 {[%emt 0:01:20]} 31. Ra3 {[%emt 0:00:10]} d3 {[%emt 0:00:16]} 32. Rxa7+ {[%emt 0:00:08]} Kxa7 {[%emt 0:00:04]} 33. Qa5+ {[%emt 0:00:06]} 1-0

[Event "XXIX Cracovia 2018"]
[Site "Krakow"]
[Date "2018.12.31"]
[Round "6"]
[White "Lewtak, Damian"]
[Black "Roshka, Yevgeniy"]
[Result "1/2-1/2"]
[ECO "B09"]
[WhiteElo "2393"]
[BlackElo "2293"]
[Annotator "NA"]
[PlyCount "94"]
[EventDate "2018.12.27"]
[EventType "swiss"]
[EventCountry "POL"]
[SourceTitle "playchess.com"]
[Source "ChessBase"]
[SourceQuality "1"]
[TimeControl "40/5400+30:1800+30"]

1. d4 {[%emt 0:00:00]} d6 {[%emt 0:15:43]} 2. e4 {[%emt 0:00:00]} g6 {[%emt 0:00:17]} 3. Nc3 {[%emt 0:02:06]} Bg7 {[%emt 0:00:02]} 4. f4 {[%emt 0:00:17]} Nf6 {[%emt 0:05:21]} 5. Nf3 {[%emt 0:00:05]} O-O {[%emt 0:00:04]} 6. e5 {[%emt 0:00:03]} dxe5 {[%emt 0:00:07]} 7. dxe5 {[%emt 0:00:05]} Qxd1+ {[%emt 0:01:05]} 8. Kxd1 {[%emt 0:00:05]} Ng4 {[%emt 0:09:14]} 9. Ke1 {[%emt 0:00:16]} c6 {[%emt 0:04:55]} 10. h3 {[%emt 0:00:23]} Nh6 {[%emt 0:00:03] LiveBook: 6 Games} 11. g4 {[%emt 0:00:04]} f6 {[%emt 0:10:19]} 12. Bc4+ {[%emt 0:00:10]} Kh8 {[%emt 0:00:27]} 13. e6 {[%emt 0:08:25] B09: Pirc Defence: Austrian Attack} (13. Be3 fxe5 14. Nxe5 Nd7 15. Rd1 Nxe5 16. fxe5 b5 17. Bb3 a5 18. a4 Ba6 19. Rd7 Nf7 20. e6 Ne5 21. Rxe7 {0-1 (54) Collins,S (2401)-Movsziszian,K (2530) San Sebastian 2010}) 13... Na6 $146 {[%emt 0:01:08]} ({Predecessor:} 13... b5 14. Bb3 Na6 15. Be3 Nc7 16. Nd4 a6 17. Ne4 f5 18. Nc5 fxg4 19. Ke2 gxh3 20. Rag1 Nf5 21. Nxf5 Rxf5 22. Rxh3 {1-0 (31) Markeluk,S (2355)-Rios,A Vicente Lopez 1993}) 14. Bxa6 {[%emt 0:00:32]} bxa6 {[%emt 0:00:02]} 15. f5 {[%emt 0:00:06]} gxf5 {[%emt 0:00:10]} 16. Bxh6 {[%emt 0:00:08]} Bxh6 {[%emt 0:00:02]} 17. gxf5 {[%emt 0:00:06]} c5 {[%emt 0:00:14]} 18. Kf2 {[%emt 0:05:37]} Bb7 {[%emt 0:01:15]} 19. Rad1 {[%emt 0:00:26]} Rfd8 {[%emt 0:00:09]} 20. Rd3 {[%emt 0:12:00]} (20. Rxd8+ $11 Rxd8 21. Rg1) 20... Rxd3 {[%emt 0:07:28]} 21. cxd3 {[%emt 0:00:02]} Rd8 {[%emt 0:00:01]} 22. Rd1 {[%emt 0:00:59]} Bf4 $15 {[%emt 0:05:12]} 23. d4 {[%emt 0:07:12]} cxd4 {[%emt 0:08:46]} 24. Rxd4 {[%emt 0:00:22]} Rxd4 {[%emt 0:01:03]} 25. Nxd4 {[%emt 0:00:06]} Kg7 {[%emt 0:00:54]} 26. Nb3 {[%emt 0:03:34]} Be5 {[%emt 0:01:24]} 27. Na5 {[%emt 0:00:31]} Ba8 {[%emt 0:06:11]} 28. Nc4 {[%emt 0:00:04]} Bxc3 29. bxc3 {[%emt 0:00:18]} Bd5 {[%emt 0:03:42]} 30. Nd2 {[%emt 0:02:44]} Bxa2 {[%emt 0:04:35]} 31. c4 {[%emt 0:00:07]} a5 {[%emt 0:00:05]} 32. Ke3 {[%emt 0:01:06]} a4 {[%emt 0:00:01]} 33. Kd4 {[%emt 0:00:11]} a3 {[%emt 0:00:01]} 34. Kc3 {[%emt 0:01:01]} Kf8 {[%emt 0:10:28]} 35. Nb3 {[%emt 0:00:08]} Bxb3 {[%emt 0:01:22]} 36. Kxb3 {[%emt 0:09:37]} Ke8 {[%emt 0:00:05]} 37. Kxa3 {[%emt 0:00:04]} Kd8 {[%emt 0:00:04]} 38. Kb4 {[%emt 0:00:09]} Kc7 {[%emt 0:00:21]} 39. Kb5 {[%emt 0:00:16]} Kb7 {[%emt 0:00:33]} 40. h4 {[%emt 0:00:00]} a6+ {[%emt 0:00:00]} 41. Ka5 {[%emt 0:00:50]} Ka7 {[%emt 0:01:28]} 42. h5 {[%emt 0:04:03]} Kb7 {[%emt 0:00:55]} 43. c5 {[%emt 0:00:40]} h6 {[%emt 0:00:03]} 44. c6+ {[%emt 0:00:19]} Kxc6 {[%emt 0:00:10]} 45. Kxa6 {[%emt 0:00:09]} Kc7 {[%emt 0:00:04]} 46. Ka7 {[%emt 0:00:31]} Kc8 {[%emt 0:00:04]} 47. Kb6 {[%emt 0:00:03]} Kb8 {[%emt 0:00:04]} 1/2-1/2

[Event "XXIX Cracovia 2018"]
[Site "Krakow"]
[Date "2018.12.31"]
[Round "6"]
[White "Galperin, Platon"]
[Black "Lee, Qing Aun"]
[Result "1-0"]
[ECO "A17"]
[WhiteElo "2363"]
[BlackElo "2297"]
[Annotator "NA"]
[PlyCount "87"]
[EventDate "2018.12.27"]
[EventType "swiss"]
[EventCountry "POL"]
[SourceTitle "playchess.com"]
[Source "ChessBase"]
[SourceQuality "1"]
[TimeControl "40/5400+30:1800+30"]

1. c4 {[%emt 0:13:23]} Nf6 {[%emt 0:01:00]} 2. Nc3 {[%emt 0:00:04]} e6 {[%emt 0:00:15]} 3. Nf3 {[%emt 0:00:09]} d5 {[%emt 0:00:15]} 4. e3 {[%emt 0:02:14]} Be7 {[%emt 0:00:55]} 5. b3 {[%emt 0:00:16]} O-O {[%emt 0:00:58]} 6. Bb2 {[%emt 0:00:02]} c5 {[%emt 0:00:33]} 7. cxd5 {[%emt 0:00:02]} exd5 {[%emt 0:01:42]} 8. d4 {[%emt 0:00:03]} Nc6 {[%emt 0:09:25]} 9. Be2 {[%emt 0:01:52]} Bf5 {[%emt 0:08:09]} 10. O-O {[%emt 0:01:05] LiveBook: 3 Games} a6 {[%emt 0:00:54] D32: Tarrasch Defence: Sidelines and lines without g3} (10... Rc8 11. dxc5 Bxc5 12. Nb5 Ne4 13. Rc1 Re8 14. Nbd4 Bd7 15. a3 a6 16. b4 Bxd4 17. Nxd4 Ne5 18. Nf3 Nxf3+ 19. Bxf3 Rxc1 20. Qxc1 {½-½ (90) Williams,S (2457)-Pranav,A (2269) Douglas 2018}) 11. Rc1 {[%emt 0:02:20]} b6 $146 {[%emt 0:13:59]} ({Predecessor:} 11... cxd4 12. Nxd4 Bg6 13. Nxc6 bxc6 14. Na4 Qd6 15. Bd4 Nd7 16. Nc5 a5 17. Qd2 Nf6 18. Qc3 {1-0 (60) Roos,E (1722)-Loesch,T (1976) Reil an der Mosel 2016}) 12. dxc5 {[%emt 0:04:06]} bxc5 {[%emt 0:00:02]} 13. Na4 {[%emt 0:00:55]} Ne4 {[%emt 0:00:22]} 14. Nd2 {[%emt 0:00:08]} Bd6 {[%emt 0:18:59]} 15. Nxe4 {[%emt 0:02:05]} dxe4 {[%emt 0:00:14]} 16. Nxc5 {[%emt 0:01:23]} Qe7 {[%emt 0:00:29]} 17. Qd5 $18 {[%emt 0:07:07]} ({Resist} 17. Nxa6 $6 Ne5 $16) 17... Bg6 {[%emt 0:10:21]} 18. Qxc6 {[%emt 0:08:08]} Rfc8 {[%emt 0:00:08]} 19. Qb7 {[%emt 0:03:01]} Bxc5 {[%emt 0:01:47]} 20. Bxa6 {[%emt 0:02:32]} Rcb8 {[%emt 0:03:12]} 21. Qxe7 {[%emt 0:04:46]} Bxe7 {[%emt 0:00:04]} 22. Rc6 {[%emt 0:02:23]} f5 {[%emt 0:00:23]} 23. Be5 {[%emt 0:06:49]} Rd8 {[%emt 0:02:16]} 24. Bc4+ {[%emt 0:00:24]} Bf7 {[%emt 0:01:43]} 25. a4 {[%emt 0:00:35]} Bxc4 {[%emt 0:01:00]} 26. Rxc4 {[%emt 0:00:04]} Rd3 {[%emt 0:00:13]} 27. Rb1 {[%emt 0:00:52]} Rad8 {[%emt 0:00:12]} 28. g4 {[%emt 0:06:43]} g6 {[%emt 0:01:50]} 29. b4 {[%emt 0:01:21]} Kf7 {[%emt 0:02:01]} 30. b5 {[%emt 0:01:04]} Ke6 {[%emt 0:00:37]} 31. Bc7 {[%emt 0:03:17]} Rd1+ {[%emt 0:00:27]} 32. Rxd1 {[%emt 0:00:01]} Rxd1+ {[%emt 0:00:07]} 33. Kg2 {[%emt 0:00:01]} Rb1 {[%emt 0:00:54]} 34. b6 {[%emt 0:00:33]} Rb2 {[%emt 0:00:14]} 35. a5 {[%emt 0:00:19]} Bh4 {[%emt 0:00:05]} 36. Bg3 {[%emt 0:00:25]} Bd8 {[%emt 0:00:56]} 37. gxf5+ {[%emt 0:00:29]} gxf5 {[%emt 0:00:03]} 38. Bc7 {[%emt 0:01:09]} Bh4 {[%emt 0:00:15]} 39. a6 {[%emt 0:03:53]} Bxf2 {[%emt 0:01:12]} 40. Rb4 {[%emt 0:00:00]} Ra2 {[%emt 0:00:00]} 41. Ra4 {[%emt 0:08:05]} Rxa4 {[%emt 0:06:00]} 42. Kxf2 {[%emt 0:01:37]} Kd7 {[%emt 0:01:56]} 43. Be5 {[%emt 0:00:06]} Rxa6 {[%emt 0:00:30]} 44. b7 {[%emt 0:00:02]} 1-0